bitfinex-derivatives/quotes_BTCF0:USTF0_20251111
["timestamp","ask_amount","ask_price","bid_price","bid_amount"]
[1762893316243,0.00225876,102830.0,102820.0,1.02863293]
[1762893316640,0.00225876,102830.0,102820.0,0.78551293]
[1762893317053,0.00225876,102830.0,102820.0,1.02863293]
[1762893317246,0.00225876,102830.0,102820.0,0.83141517]
[1762893317451,0.00225876,102830.0,102820.0,0.22749517]
[1762893317452,0.40841679,102830.0,102820.0,0.22749517]
[1762893317653,0.40841679,102830.0,102820.0,0.60001517]
[1762893318857,0.40841679,102830.0,102820.0,0.53056406]
[1762893319554,0.38683679,102830.0,102820.0,0.97090182]
[1762893319952,0.36525679,102830.0,102820.0,0.72778182]
[1762893320157,0.40800679,102830.0,102820.0,0.53056406]
[1762893320351,0.00225876,102830.0,102820.0,1.33170182]
[1762893320557,0.00225876,102830.0,102820.0,1.15803293]
[1762893320758,0.00225876,102830.0,102820.0,1.04035293]
[1762893321050,0.00225876,102830.0,102820.0,1.15803293]
[1762893321456,0.00225876,102830.0,102820.0,1.40115293]
[1762893322858,0.00225876,102830.0,102820.0,1.27626055]
[1762893323450,0.00225876,102830.0,102820.0,1.51938055]
[1762893323650,0.00225876,102830.0,102820.0,1.27626055]
[1762893324055,0.00225876,102830.0,102820.0,1.15858055]
[1762893324258,0.00225876,102830.0,102820.0,0.91546055]
[1762893324667,0.00445679,102830.0,102820.0,0.91546055]
[1762893325157,0.02562679,102830.0,102820.0,0.91546055]
[1762893325656,0.38642679,102830.0,102820.0,0.91546055]
[1762893325849,0.40800679,102830.0,102820.0,0.54294055]
[1762893326057,0.40800679,102830.0,102820.0,0.75745786]
[1762893326254,0.40800679,102830.0,102820.0,0.91518055]
[1762893328059,0.40800679,102830.0,102820.0,0.75745786]
[1762893328759,0.40800679,102830.0,102820.0,0.31576675]
[1762893329152,0.40800679,102830.0,102820.0,0.15804406]
[1762893329153,0.66301148,102830.0,102820.0,0.15804406]
[1762893329354,0.66992148,102830.0,102820.0,0.0542021]
[1762893329556,0.40800679,102830.0,102820.0,0.40005781]
[1762893329752,0.50528879,102830.0,102820.0,0.40005781]
[1762893330062,0.87748879,102830.0,102820.0,0.24233512]
[1762893330355,0.40800679,102830.0,102820.0,0.36507619]
[1762893330662,0.78016679,102830.0,102820.0,0.2073535]
[1762893330851,0.78016679,102830.0,102820.0,0.36507619]
[1762893331052,0.87744879,102830.0,102820.0,0.36507619]
[1762893331853,1.03517148,102830.0,102820.0,0.14503867]
[1762893332151,1.03517148,102830.0,102820.0,0.08917867]
[1762893332862,0.87744879,102830.0,102820.0,0.08917867]
[1762893333261,0.87744879,102830.0,102820.0,0.03670923]
[1762893333653,0.87744879,102830.0,102820.0,0.13400063]
[1762893334061,0.87744879,102830.0,102820.0,0.03670923]
[1762893334357,1.03525925,102830.0,102820.0,0.13400063]
[1762893334752,0.87744879,102830.0,102820.0,0.13400063]
[1762893335061,0.50528879,102830.0,102820.0,0.13400063]
[1762893335361,0.87736879,102830.0,102820.0,0.03670923]
[1762893335562,1.03517925,102830.0,102820.0,0.03670923]
[1762893335756,0.66309925,102830.0,102820.0,0.13400063]
[1762893335955,1.03517925,102830.0,102820.0,0.13400063]
[1762893336364,1.03517925,102830.0,102820.0,0.15539063]
[1762893337257,0.87736879,102830.0,102820.0,0.15539063]
[1762893337652,0.78008679,102830.0,102820.0,0.18986063]
[1762893338368,0.40800679,102830.0,102820.0,0.18986063]
[1762893338551,0.38642679,102830.0,102820.0,0.2073535]
[1762893338755,0.40800679,102830.0,102820.0,0.36516396]
[1762893339361,0.40800679,102830.0,102820.0,0.2073535]
[1762893339562,0.40800679,102830.0,102820.0,0.36516396]
[1762893340364,0.40800679,102830.0,102820.0,0.2073535]
[1762893341860,0.38642679,102830.0,102820.0,0.36516396]
[1762893342067,0.3608,102840.0,102830.0,0.153142]
[1762893342266,0.38197,102850.0,102840.0,0.1531325]
[1762893342469,0.3608,102850.0,102840.0,0.73604363]
[1762893342767,0.40355,102860.0,102850.0,0.153123]
[1762893343069,0.40574803,102860.0,102850.0,0.20625802]
[1762893343365,0.40574803,102860.0,102850.0,0.24118045]
[1762893344067,0.40574803,102860.0,102850.0,0.24218045]
[1762893344561,0.04494803,102860.0,102850.0,0.72586848]
[1762893344764,0.04494803,102860.0,102850.0,0.20725802]
[1762893344968,0.40574803,102860.0,102850.0,0.20725802]
[1762893345564,0.40574803,102860.0,102850.0,0.24216234]
[1762893347268,0.40574803,102860.0,102850.0,0.18975998]
[1762893347665,0.40574803,102860.0,102850.0,0.24216234]
[1762893348672,0.51191163,102860.0,102850.0,0.00090432]
[1762893348977,0.37190803,102860.0,102850.0,0.097263]
[1762893349268,0.36299803,102860.0,102850.0,0.15385566]
[1762893349473,0.73483803,102860.0,102850.0,0.15385566]
[1762893349677,0.36299803,102860.0,102850.0,0.15385566]
[1762893349871,0.73479803,102860.0,102850.0,0.15385566]
[1762893350371,0.73479803,102860.0,102850.0,0.15465566]
[1762893350571,0.73475803,102860.0,102850.0,0.15465566]
[1762893351968,0.36299803,102860.0,102850.0,0.15465566]
[1762893352367,0.3608,102860.0,102850.0,0.40248323]
[1762893352569,0.36094526,102870.0,102860.0,0.1548936]
[1762893352570,0.73274526,102870.0,102860.0,0.1548936]
[1762893352770,0.73494329,102870.0,102860.0,0.15562626]
[1762893353864,1.08001496,102870.0,102860.0,0.09798626]
[1762893354072,0.98277086,102870.0,102860.0,0.09798626]
[1762893354475,1.08001496,102870.0,102860.0,0.11171626]
[1762893354774,0.83318739,102870.0,102860.0,0.11171626]
[1762893355372,0.83318739,102870.0,102860.0,0.00073266]
[1762893355578,0.0972536,102860.0,102850.0,0.0972569]
[1762893355772,0.0972536,102860.0,102850.0,0.11171956]
[1762893355773,0.46025163,102860.0,102850.0,0.11171956]
[1762893355967,0.46025163,102860.0,102850.0,0.13342956]
[1762893357877,0.46025163,102860.0,102850.0,0.15662956]
[1762893358074,0.46025163,102860.0,102850.0,0.11272576]
[1762893358376,0.46025163,102860.0,102850.0,0.15761576]
[1762893358774,0.36299803,102860.0,102850.0,0.15761576]
[1762893359077,0.83201173,102860.0,102850.0,0.15761576]
[1762893359775,0.73475803,102860.0,102850.0,0.15761576]
[1762893359973,0.83201173,102860.0,102850.0,0.15761576]
[1762893360178,0.73475803,102860.0,102850.0,0.15761576]
[1762893360569,0.73471803,102860.0,102850.0,0.15761576]
[1762893361271,0.83197173,102860.0,102850.0,0.06035266]
[1762893361471,0.73471803,102860.0,102850.0,0.15761576]
[1762893363280,0.83197173,102860.0,102850.0,0.15761576]
[1762893364777,0.83197173,102860.0,102850.0,0.06035266]
[1762893365079,0.83197173,102860.0,102850.0,0.15761576]
[1762893368879,0.83197173,102860.0,102850.0,0.00173266]
[1762893368880,0.9896819,102860.0,102850.0,0.00173266]
[1762893369079,0.9896819,102860.0,102850.0,0.001]
[1762893369381,0.9894419,102860.0,102850.0,0.09899576]
[1762893370280,0.6179619,102860.0,102850.0,0.09899576]
[1762893370780,0.9894019,102860.0,102850.0,0.09899576]
[1762893372086,0.9894019,102860.0,102850.0,0.13493576]
[1762893372384,0.9894019,102860.0,102850.0,0.11185576]
[1762893372885,0.6179619,102860.0,102850.0,0.11185576]
[1762893373073,0.9893219,102860.0,102850.0,0.11185576]
[1762893374678,0.83161173,102860.0,102850.0,0.13493576]
[1762893374882,0.9893219,102860.0,102850.0,0.11185576]
[1762893375987,0.9893219,102860.0,102850.0,0.01459266]
[1762893376184,0.9892419,102860.0,102850.0,0.11185576]
[1762893376883,0.9892419,102860.0,102850.0,0.01459266]
[1762893377086,0.9892419,102860.0,102850.0,0.11185576]
[1762893377586,0.9892419,102860.0,102850.0,0.01459266]
[1762893378487,0.9892419,102860.0,102850.0,0.11185576]
[1762893379480,0.9892419,102860.0,102850.0,0.01459266]
[1762893380589,0.9892419,102860.0,102850.0,0.00173266]
[1762893381495,0.9892419,102860.0,102820.0,0.06945111]
[1762893381496,0.097282,102830.0,102820.0,0.06945111]
[1762893381784,0.097282,102830.0,102810.0,0.1586599]
[1762893381785,0.8933482,102830.0,102810.0,0.1586599]
[1762893381989,0.46028003,102830.0,102820.0,0.03619]
[1762893382288,1.3526302,102830.0,102820.0,0.05836]
[1762893382590,0.9797902,102830.0,102820.0,0.05936]
[1762893382780,1.3545902,102830.0,102820.0,0.01413]
[1762893382988,1.37565011,102830.0,102820.0,0.01413]
[1762893383290,1.37565011,102830.0,102820.0,0.001]
[1762893383889,1.52215451,102830.0,102820.0,0.001]
[1762893384484,1.53187012,102830.0,102820.0,0.001]
[1762893384786,1.53187012,102830.0,102820.0,0.01413]
[1762893385291,1.53187012,102830.0,102810.0,0.01613]
[1762893385292,0.0972915,102820.0,102810.0,0.01613]
[1762893385493,0.63905961,102820.0,102810.0,0.06136]
[1762893385683,1.01341961,102820.0,102810.0,0.06136]
[1762893385988,1.01341961,102820.0,102810.0,0.1586609]
[1762893386188,1.01341961,102820.0,102810.0,0.06136]
[1762893386388,1.01341961,102820.0,102810.0,0.1586609]
[1762893386590,1.01441961,102820.0,102810.0,0.1586609]
[1762893387395,0.9943597,102820.0,102810.0,0.06136]
[1762893387579,0.9943597,102820.0,102810.0,0.1586609]
[1762893388288,0.36499803,102820.0,102810.0,0.1586609]
[1762893388488,0.83656953,102820.0,102810.0,0.1586609]
[1762893390295,0.46228953,102820.0,102810.0,0.1586609]
[1762893391387,0.36499803,102820.0,102810.0,0.31637107]
[1762893391793,0.36499803,102820.0,102810.0,0.1586609]
[1762893391989,0.36499803,102820.0,102810.0,0.31637107]
[1762893392896,0.36499803,102820.0,102810.0,0.31646442]
[1762893396803,0.3628,102820.0,102810.0,0.71646442]
[1762893396995,0.3278,102820.0,102810.0,0.5586609]
[1762893397297,0.3278,102820.0,102810.0,0.71646442]
[1762893398492,0.002,102820.0,102810.0,0.87426794]
[1762893398993,0.36094526,102840.0,102830.0,0.155642]
[1762893399295,0.4580486,102870.0,102860.0,0.04523]
[1762893399599,0.61805015,102870.0,102860.0,0.1556136]
[1762893399990,0.61805015,102870.0,102860.0,0.05836]
[1762893400186,0.61805015,102870.0,102860.0,0.1556136]
[1762893401088,0.25725015,102870.0,102860.0,0.1556136]
[1762893401495,0.27792949,102870.0,102860.0,0.1556136]
[1762893401690,0.00014526,102880.0,102870.0,0.1556041]
[1762893401906,0.00234329,102880.0,102870.0,0.68752762]
[1762893402904,0.00334329,102880.0,102870.0,0.5297241]
[1762893403301,0.10057809,102880.0,102870.0,0.5297242]
[1762893404008,0.10257809,102880.0,102870.0,0.5297242]
[1762893404210,0.00534329,102880.0,102870.0,0.5297242]
[1762893404411,0.00534329,102880.0,102870.0,0.1556042]
[1762893404412,0.00314526,102880.0,102870.0,0.1556042]
[1762893404609,0.00314526,102880.0,102870.0,1.08753025]
[1762893405504,0.00169628,102880.0,102870.0,1.08753025]
[1762893405711,0.8319323,102910.0,102900.0,0.155576]
[1762893406011,0.48156214,102910.0,102900.0,0.05836]
[1762893406210,0.65725058,102910.0,102900.0,0.05836]
[1762893406911,0.65725058,102910.0,102890.0,0.38731526]
[1762893406912,0.0972159,102900.0,102890.0,0.01327526]
[1762893407113,1.03125998,102900.0,102890.0,0.05850526]
[1762893407812,1.03125998,102900.0,102890.0,0.03633526]
[1762893408210,1.03325998,102900.0,102890.0,0.03733526]
[1762893409605,1.03325998,102900.0,102890.0,0.01427526]
[1762893410711,1.05477268,102900.0,102890.0,0.00114526]
[1762893411214,0.83645393,102900.0,102890.0,0.15484066]
[1762893411517,0.36499803,102900.0,102890.0,0.15484066]
[1762893411719,0.00419803,102900.0,102890.0,0.15484066]
[1762893412410,0.00419803,102900.0,102890.0,0.51564066]
[1762893413412,0.002,102900.0,102890.0,0.51564066]
[1762893414817,0.00419803,102900.0,102890.0,0.51564066]
[1762893416118,0.10141393,102900.0,102890.0,0.52896056]
[1762893416320,0.10141393,102900.0,102890.0,0.88976056]
[1762893416510,0.10141393,102900.0,102890.0,0.52884056]
[1762893416511,0.46221393,102900.0,102890.0,0.52884056]
[1762893416816,0.65925998,102900.0,102890.0,0.05761526]
[1762893417411,1.03325998,102900.0,102890.0,0.05761526]
[1762893419318,1.03325998,102900.0,102890.0,0.01413526]
[1762893420215,1.05457755,102900.0,102890.0,0.01413526]
[1762893420424,1.03325998,102900.0,102890.0,0.01413526]
[1762893420814,0.68057854,102900.0,102890.0,0.00114526]
[1762893421016,1.05449854,102900.0,102890.0,0.00114526]
[1762893421217,1.05449854,102900.0,102890.0,0.01446526]
[1762893422414,1.05441854,102900.0,102890.0,0.01446526]
[1762893422611,1.05441854,102900.0,102890.0,0.00114526]
[1762893422811,0.0972253,102890.0,102880.0,0.0574]
[1762893423017,0.48156689,102890.0,102880.0,0.0574]
[1762893423212,0.48156689,102890.0,102880.0,0.1546348]
[1762893423213,0.38434159,102890.0,102880.0,0.1546348]
[1762893423418,0.47326333,102890.0,102880.0,0.1546348]
[1762893424022,0.10042333,102890.0,102880.0,0.1546348]
[1762893424322,0.47442333,102890.0,102880.0,0.1546348]
[1762893424518,0.00319803,102890.0,102880.0,0.1546348]
[1762893425128,0.001,102890.0,102880.0,0.71248085]
[1762893425423,0.00014526,102900.0,102890.0,0.1548153]
[1762893425621,0.00014526,102900.0,102890.0,0.71266135]
[1762893426520,0.00014526,102900.0,102890.0,1.08662135]
[1762893426725,0.00214526,102900.0,102890.0,1.08662135]
[1762893427429,0.8319971,102920.0,102910.0,0.1547965]
[1762893427722,0.38441697,102920.0,102910.0,0.1547965]
[1762893428023,0.3608,102930.0,102920.0,0.154787]
[1762893428323,0.02141742,102930.0,102920.0,0.71263305]
[1762893428527,0.36094526,102940.0,102930.0,0.1547776]
[1762893428726,0.38457841,102940.0,102930.0,0.35182365]
[1762893429021,0.48175651,102940.0,102930.0,0.05759]
[1762893429229,0.48175363,102940.0,102930.0,0.05759]
[1762893429420,0.38457553,102940.0,102930.0,0.1547776]
[1762893429623,0.38557553,102940.0,102930.0,0.1577776]
[1762893429825,0.48275363,102940.0,102930.0,0.1577776]
[1762893430026,0.38557553,102940.0,102930.0,0.1577776]
[1762893430326,0.02477553,102940.0,102930.0,0.1577776]
[1762893431124,0.00334329,102940.0,102930.0,0.1577776]
[1762893431329,0.12194416,102940.0,102930.0,0.1577776]
[1762893431525,0.12294416,102940.0,102930.0,0.06059]
[1762893431727,0.48374416,102940.0,102930.0,0.06059]
[1762893431925,0.68079021,102940.0,102930.0,0.06059]
[1762893432431,1.05459021,102940.0,102930.0,0.06059]
[1762893432823,0.85754416,102940.0,102930.0,0.06059]
[1762893433421,0.85754416,102940.0,102930.0,0.1577776]
[1762893433823,0.85754416,102940.0,102930.0,0.06059]
[1762893434027,0.85754416,102940.0,102930.0,0.1577776]
[1762893434723,0.38656606,102940.0,102930.0,0.1577776]
[1762893434932,0.02576606,102940.0,102930.0,0.35482365]
[1762893435123,0.4579606,102960.0,102950.0,0.05759]
[1762893435321,0.75801411,102960.0,102950.0,0.1547587]
[1762893435526,0.85517331,102960.0,102950.0,0.1547587]
[1762893435734,0.75801411,102960.0,102950.0,0.1547587]
[1762893435927,0.38429411,102960.0,102950.0,0.1547587]
[1762893436132,0.38429411,102960.0,102950.0,0.35180475]
[1762893436336,0.02349411,102960.0,102950.0,0.71260475]
[1762893436527,0.02129608,102960.0,102950.0,0.71260475]
[1762893436729,0.00014526,102970.0,102960.0,0.1414292]
[1762893436934,0.09949309,102970.0,102960.0,0.1414292]
[1762893437236,0.09949309,102970.0,102960.0,1.6414292]
[1762893437639,0.00234329,102970.0,102960.0,1.6414292]
[1762893437933,0.10149309,102970.0,102960.0,1.6414292]
[1762893438334,0.00434329,102970.0,102960.0,1.6414292]
[1762893438836,0.00214526,102970.0,102960.0,1.6414292]
[1762893439133,0.00214526,102970.0,102960.0,2.19927525]
[1762893440029,0.3608,102990.0,102980.0,0.0449]
[1762893440235,0.83368893,102990.0,102980.0,0.1420404]
[1762893440829,0.83368893,102990.0,102980.0,0.0449]
[1762893441440,0.83568893,102990.0,102980.0,0.0449]
[1762893441638,0.83968893,102990.0,102980.0,0.0459]
[1762893442431,0.83868893,102990.0,102980.0,0.0459]
[1762893442838,0.83668893,102990.0,102980.0,0.0459]
[1762893443029,0.83768893,102990.0,102980.0,0.0459]
[1762893443223,0.6823853,102990.0,102980.0,0.001]
[1762893443437,0.48533925,102990.0,102980.0,0.1430404]
[1762893443735,0.48533925,102990.0,102980.0,0.0459]
[1762893445030,0.48533925,102990.0,102980.0,0.1430404]
[1762893445237,0.38820835,102990.0,102980.0,0.1430404]
[1762893446243,0.48533935,102990.0,102980.0,0.1430404]
[1762893446740,0.48533935,102990.0,102980.0,0.1564104]
[1762893447744,0.38820835,102990.0,102980.0,0.1564104]
[1762893448035,0.00619803,102990.0,102980.0,0.1564104]
[1762893448947,0.46412903,102990.0,102980.0,0.1564104]
[1762893449237,0.48532853,102990.0,102980.0,0.1564104]
[1762893450642,0.68237458,102990.0,102980.0,0.1334904]
[1762893450838,0.68237458,102990.0,102980.0,0.1115104]
[1762893451539,0.66117508,102990.0,102980.0,0.1334904]
[1762893451732,0.36699803,102990.0,102980.0,0.1564104]
[1762893451937,0.46412903,102990.0,102980.0,0.1564104]
[1762893453140,0.4853676,102990.0,102980.0,0.1564104]
[1762893453445,0.68241365,102990.0,102980.0,0.01437]
[1762893453631,0.82715204,102990.0,102980.0,0.001]
[1762893454236,0.82715204,102990.0,102980.0,0.01437]
[1762893454938,0.87741659,102990.0,102980.0,0.01437]
[1762893459845,0.0971404,102980.0,102970.0,0.01351526]
[1762893460046,0.853937,102980.0,102970.0,0.03549526]
[1762893460249,0.853937,102980.0,102970.0,0.15556506]
[1762893460642,0.853937,102980.0,102970.0,0.05841526]
[1762893461046,0.853937,102980.0,102970.0,0.15556506]
[1762893461639,0.853937,102980.0,102970.0,0.05841526]
[1762893461851,0.853937,102980.0,102970.0,0.15556506]
[1762893462147,0.854937,102980.0,102970.0,0.15556506]
[1762893462344,0.854937,102980.0,102970.0,0.05841526]
[1762893462746,0.854937,102980.0,102970.0,0.03549526]
[1762893463050,0.854937,102980.0,102970.0,0.01351526]
[1762893463051,1.1022476,102980.0,102970.0,0.01351526]
[1762893463445,1.15392909,102980.0,102970.0,0.01351526]
[1762893464251,1.30052727,102980.0,102970.0,0.00014526]
[1762893464753,0.0971498,102970.0,102960.0,0.01337]
[1762893465052,0.728697,102970.0,102960.0,0.05827]
[1762893465348,0.728697,102970.0,102960.0,0.1554292]
[1762893465349,0.53306789,102970.0,102960.0,0.1554292]
[1762893465944,0.53306789,102970.0,102960.0,0.1564292]
[1762893467152,0.4813864,102970.0,102960.0,0.05927]
[1762893467446,0.53306789,102970.0,102960.0,0.03635]
[1762893467650,0.78037849,102970.0,102960.0,0.01437]
[1762893468354,0.78337849,102970.0,102960.0,0.01537]
[1762893468552,0.78437849,102970.0,102960.0,0.01437]
[1762893471149,0.732697,102970.0,102960.0,0.01437]
[1762893471951,0.78437849,102970.0,102960.0,0.001]
[1762893472350,0.93030701,102970.0,102960.0,0.001]
[1762893472754,0.0971592,102960.0,102950.0,0.01346526]
[1762893473050,1.24573474,102960.0,102950.0,0.00014526]
[1762893473249,0.0971687,102950.0,102940.0,0.01337]
[1762893473443,0.0971781,102940.0,102930.0,0.01337]
[1762893473647,1.1008853,102940.0,102930.0,0.05783]
[1762893473857,0.99854903,102940.0,102930.0,0.05783]
[1762893474054,0.99854903,102940.0,102930.0,0.1550176]
[1762893474555,0.99854903,102940.0,102930.0,0.05783]
[1762893475555,0.99954903,102940.0,102930.0,0.05783]
[1762893475762,0.99954903,102940.0,102930.0,0.05883]
[1762893476058,0.0971876,102930.0,102920.0,0.01332526]
[1762893476262,0.8537042,102930.0,102920.0,0.15498226]
[1762893477349,0.8537042,102930.0,102920.0,0.15598226]
[1762893478551,0.7565166,102930.0,102920.0,0.15598226]
[1762893478753,0.8537042,102930.0,102920.0,0.15598226]
[1762893479154,0.7565166,102930.0,102920.0,0.15598226]
[1762893479355,0.00219803,102930.0,102920.0,0.51678226]
[1762893479555,0.37447803,102930.0,102920.0,0.76409286]
[1762893480056,0.37447803,102930.0,102920.0,0.51678226]
[1762893480257,0.0971783,102940.0,102930.0,0.1568776]
[1762893480458,0.37443803,102940.0,102930.0,0.1568776]
[1762893480657,0.00219803,102940.0,102930.0,0.5176776]
[1762893480861,0.37443803,102940.0,102930.0,0.5176776]
[1762893481259,0.47161613,102940.0,102930.0,0.1568776]
[1762893481460,0.37543803,102940.0,102930.0,0.5176776]
[1762893481660,0.00319803,102940.0,102930.0,0.5176776]
[1762893482061,0.10037613,102940.0,102930.0,0.5176776]
[1762893482664,0.10037613,102940.0,102930.0,0.1568776]
[1762893482960,0.00319803,102940.0,102930.0,0.5176776]
[1762893485560,0.001,102940.0,102930.0,0.7649882]
[1762893485760,0.00014526,102950.0,102940.0,0.1554781]
[1762893485761,0.37222526,102950.0,102940.0,0.1554781]
[1762893485964,0.00014526,102950.0,102940.0,0.5162781]
[1762893486970,0.00214526,102950.0,102940.0,0.5162781]
[1762893489565,0.00214526,102950.0,102940.0,0.7635887]
[1762893489764,0.00214526,102950.0,102940.0,0.5162781]
[1762893490261,0.09931396,102950.0,102940.0,0.5162781]
[1762893490462,0.00214526,102950.0,102940.0,0.5162781]
[1762893491259,0.09931396,102950.0,102940.0,0.5162781]
[1762893491464,0.12261074,102950.0,102940.0,0.5162781]
[1762893491669,0.12361074,102950.0,102940.0,0.5162781]
[1762893491965,0.02644204,102950.0,102940.0,0.5162781]
[1762893492371,0.02444204,102950.0,102940.0,0.5162781]
[1762893492669,0.73072134,102950.0,102940.0,0.0603]
[1762893492876,0.73072134,102950.0,102940.0,0.01533]
[1762893493467,0.85549074,102950.0,102940.0,0.0603]
[1762893493675,0.85449074,102950.0,102940.0,0.0603]
[1762893493876,0.85549074,102950.0,102940.0,0.0603]
[1762893494068,0.85549074,102950.0,102940.0,0.0583]
[1762893494069,0.85449074,102950.0,102940.0,0.0583]
[1762893494373,1.10080134,102950.0,102940.0,0.0583]
[1762893495765,1.10180134,102950.0,102940.0,0.0583]
[1762893496666,0.85449074,102950.0,102940.0,0.0583]
[1762893497764,1.10180134,102950.0,102940.0,0.0583]
[1762893498875,0.48241074,102950.0,102940.0,0.0583]
[1762893499071,0.85425074,102950.0,102940.0,0.0583]
[1762893500867,1.10156134,102950.0,102940.0,0.0583]
[1762893502878,0.85425074,102950.0,102940.0,0.0583]
[1762893503180,1.10144134,102950.0,102940.0,0.0583]
[1762893503381,0.48241074,102950.0,102940.0,0.1554781]
[1762893503568,0.48241074,102950.0,102940.0,0.5162781]
[1762893503569,0.49329074,102950.0,102940.0,0.5162781]
[1762893503766,0.85409074,102950.0,102940.0,0.0583]
[1762893505180,0.85409074,102950.0,102940.0,0.1554781]
[1762893505770,0.48241074,102950.0,102940.0,0.1554781]
[1762893507075,0.48241074,102950.0,102940.0,0.0583]
[1762893507583,0.0971781,102940.0,102930.0,0.0354]
[1762893507883,1.06517775,102940.0,102930.0,0.01333]
[1762893508882,0.0971876,102930.0,102920.0,0.01332526]
[1762893509184,0.72859498,102930.0,102920.0,0.05653526]
[1762893509783,0.48128438,102930.0,102920.0,0.05653526]
[1762893509983,0.48128438,102930.0,102920.0,0.15373226]
[1762893510170,0.48128438,102930.0,102920.0,0.05653526]
[1762893510771,0.48128438,102930.0,102920.0,0.15473226]
[1762893511082,0.48128438,102930.0,102920.0,0.05753526]
[1762893516883,0.67822776,102930.0,102920.0,0.01432526]
[1762893517273,0.67822776,102930.0,102920.0,0.00114526]
[1762893517488,0.0972064,102910.0,102900.0,0.01364]
[1762893517678,1.41056656,102910.0,102900.0,0.01364]
[1762893517881,0.0972159,102900.0,102890.0,0.05685]
[1762893518079,0.67825606,102900.0,102890.0,0.05685]
[1762893518481,0.67833127,102900.0,102890.0,0.05685]
[1762893518785,0.48138789,102900.0,102890.0,0.1540753]
[1762893520088,0.48238789,102900.0,102890.0,0.1540753]
[1762893520586,0.48236277,102900.0,102890.0,0.1540753]
[1762893521087,0.46128914,102900.0,102890.0,0.1540753]
[1762893521583,0.46128914,102900.0,102890.0,0.05685]
[1762893521786,0.46128914,102900.0,102890.0,0.1540753]
[1762893522086,0.48255155,102900.0,102890.0,0.1540753]
[1762893522488,0.46128914,102900.0,102890.0,0.1540753]
[1762893523787,0.46128914,102900.0,102890.0,0.05685]
[1762893524488,0.46128914,102900.0,102890.0,0.1540753]
[1762893526392,0.65823252,102900.0,102890.0,0.1540753]
[1762893526582,0.65823252,102900.0,102890.0,0.05685]
[1762893527086,0.7977937,102900.0,102890.0,0.01364]
[1762893527484,0.0972253,102890.0,102880.0,0.01378526]
[1762893527687,0.63909826,102890.0,102880.0,0.01378526]
[1762893527894,0.63909826,102890.0,102880.0,0.05699526]
[1762893528389,0.63917347,102890.0,102880.0,0.05699526]
[1762893528895,0.63917347,102890.0,102880.0,0.01378526]
[1762893529489,0.7968031,102890.0,102880.0,0.00014526]
[1762893530185,0.0972348,102880.0,102870.0,0.01364]
[1762893530493,1.14720611,102880.0,102870.0,0.01364]
[1762893530790,1.16843439,102880.0,102870.0,0.01364]
[1762893531393,1.16943439,102880.0,102870.0,0.01564]
[1762893531894,1.17043439,102880.0,102870.0,0.01564]
[1762893532990,1.05230218,102880.0,102870.0,0.01564]
[1762893533687,0.85517513,102880.0,102870.0,0.01564]
[1762893533885,1.05230218,102880.0,102870.0,0.01564]
[1762893534787,1.05230218,102880.0,102870.0,0.05988]
[1762893535092,0.85521513,102880.0,102870.0,0.05988]
[1762893535483,0.85520235,102880.0,102870.0,0.1571242]
[1762893536189,1.0523294,102880.0,102870.0,0.05988]
[1762893536386,0.85520235,102880.0,102870.0,0.05988]
[1762893536587,1.0523294,102880.0,102870.0,0.05988]
[1762893537290,1.0523294,102880.0,102870.0,0.1571242]
[1762893539083,1.0523294,102880.0,102870.0,0.05988]
[1762893539285,1.0523294,102880.0,102870.0,0.03747]
[1762893539485,1.0523294,102880.0,102870.0,0.01564]
[1762893540394,1.0513294,102880.0,102870.0,0.01564]
[1762893540687,1.0523294,102880.0,102870.0,0.01364]
[1762893541487,1.0523294,102880.0,102870.0,0.05806]
[1762893541885,0.85524235,102880.0,102870.0,0.1553042]
[1762893542086,0.38408952,102880.0,102870.0,0.35243125]
[1762893542285,0.00207402,102880.0,102870.0,0.35243125]
[1762893542480,0.10150685,102880.0,102870.0,0.1553042]
[1762893542790,0.00427205,102880.0,102870.0,0.1553042]
[1762893546990,0.10150685,102880.0,102870.0,0.05806]
[1762893547198,1.05242855,102880.0,102870.0,0.05806]
[1762893547689,1.05242855,102880.0,102870.0,0.1553042]
[1762893548092,0.8553015,102880.0,102870.0,0.1553042]
[1762893548901,0.4836215,102880.0,102870.0,0.1553042]
[1762893549202,0.8553015,102880.0,102870.0,0.1553042]
[1762893549705,0.4836215,102880.0,102870.0,0.1553042]
[1762893550001,0.4836215,102880.0,102870.0,0.05806]
[1762893550194,0.8553015,102880.0,102870.0,0.05806]
[1762893550393,1.05242855,102880.0,102870.0,0.05806]
[1762893551500,0.4945015,102880.0,102870.0,0.1553042]
[1762893552089,0.1228215,102880.0,102870.0,0.1553042]
[1762893552295,0.8553015,102880.0,102870.0,0.1553042]
[1762893552690,0.4836215,102880.0,102870.0,0.1553042]
[1762893552899,0.8553015,102880.0,102870.0,0.1553042]
[1762893553498,0.4836215,102880.0,102870.0,0.1553042]
[1762893553698,0.8553015,102880.0,102870.0,0.05806]
[1762893553901,1.05242855,102880.0,102870.0,0.05806]
[1762893555004,1.17070724,102880.0,102870.0,0.05806]
[1762893556007,1.17070724,102880.0,102870.0,0.1553042]
[1762893556310,1.17070724,102880.0,102870.0,0.05806]
[1762893556607,1.17070724,102880.0,102870.0,0.1553042]
[1762893557410,0.1228215,102880.0,102870.0,0.1553042]
[1762893557707,0.0255867,102880.0,102870.0,0.31300707]
[1762893557907,0.3972667,102880.0,102870.0,0.31300707]
[1762893558413,0.00207402,102880.0,102870.0,0.67380707]
[1762893558911,0.00207402,102880.0,102870.0,0.5161042]
[1762893560016,4.02e-06,102880.0,102870.0,0.95612861]
[1762893560312,4.02e-06,102880.0,102870.0,1.00835894]
[1762893561621,4.02e-06,102880.0,102870.0,0.76535894]
[1762893562208,4.02e-06,102880.0,102870.0,1.00835894]
[1762893562719,4.02e-06,102880.0,102870.0,0.76535894]
[1762893563014,4.02e-06,102880.0,102870.0,1.00835894]
[1762893564518,0.4580068,102910.0,102900.0,0.1543659]
[1762893564712,0.85311431,102910.0,102900.0,0.1543659]
[1762893565319,1.05013872,102910.0,102900.0,0.1543659]
[1762893565816,0.85611431,102910.0,102900.0,0.1543659]
[1762893566319,0.86111431,102910.0,102900.0,0.1553659]
[1762893566720,1.05813872,102910.0,102900.0,0.05815]
[1762893567013,1.05813872,102910.0,102900.0,0.01381]
[1762893567619,1.05813872,102910.0,102900.0,0.001]
[1762893567912,1.20435648,102910.0,102900.0,0.001]
[1762893568117,1.25603797,102910.0,102900.0,0.001]
[1762893568317,1.25603797,102910.0,102890.0,0.00014526]
[1762893568318,0.0972159,102900.0,102890.0,0.00014526]
[1762893568513,0.67850782,102900.0,102890.0,0.01295526]
[1762893569528,0.67850782,102900.0,102890.0,0.00114526]
[1762893569529,0.68250782,102900.0,102890.0,0.00114526]
[1762893569725,0.0972348,102880.0,102870.0,0.05798]
[1762893570030,1.41092672,102880.0,102870.0,0.05798]
[1762893570930,1.41192672,102880.0,102870.0,0.1552242]